[Event "DVM U20w 2019"]
[Site "Braunschweig"]
[Date "2019.12.27"]
[Round "2"]
[White "Schnabel, Luise"]
[Black "Mönster, Madita"]
[Result "1-0"]
[ECO "B99"]
[WhiteElo "1836"]
[BlackElo "1956"]
[Annotator "NA"]
[PlyCount "129"]
[EventDate "2019.12.27"]
[EventType "team-tourn"]
[EventRounds "7"]
[EventCountry "GER"]
[SourceTitle "playchess.com"]
[Source "ChessBase"]
[SourceQuality "1"]
[WhiteTeam "TuRa Harksheide Norderstedt"]
[BlackTeam "SV Lingen"]
[TimeControl "40/5400+30:1800+30"]

1. e4 {[%emt 0:00:00]} c5 {[%emt 0:00:00]} 2. Nf3 {[%emt 0:00:00]} d6 {[%emt 0:00:00]} 3. d4 {[%emt 0:00:00]} cxd4 {[%emt 0:00:00]} 4. Nxd4 {[%emt 0:00:00]} Nf6 {[%emt 0:00:00]} 5. Nc3 {[%emt 0:00:00]} a6 {[%emt 0:00:00]} 6. Bg5 {[%emt 0:00:11]} Nbd7 {[%emt 0:00:42]} 7. f4 {[%emt 0:00:33]} Qc7 {[%emt 0:01:40]} 8. Qf3 {[%emt 0:02:33]} e6 {[%emt 0:02:53]} 9. O-O-O {[%emt 0:00:25]} Be7 {[%emt 0:01:26]} 10. Bd3 {[%emt 0:01:11]} O-O {[%emt 0:06:23]} 11. g4 {[%emt 0:05:17]} Nb6 {[%emt 0:18:28]} 12. Bh4 {[%emt 0:04:44]} Ne8 {[%emt 0:10:17]} 13. Bxe7 {[%emt 0:04:08]} Qxe7 {[%emt 0:00:09]} 14. h4 {[%emt 0:04:01]} Bd7 {[%emt 0:02:18]} 15. g5 {[%emt 0:07:46]} Rc8 {[%emt 0:11:16]} 16. Rhg1 {[%emt 0:09:40]} f6 {[%emt 0:06:59]} 17. Rd2 {[%emt 0:08:55]} Nc4 {[%emt 0:08:26]} 18. Bxc4 {[%emt 0:15:58]} Rxc4 {[%emt 0:00:11]} 19. Qd3 {[%emt 0:01:06]} Rc5 {[%emt 0:05:52]} 20. Rdg2 {[%emt 0:04:38]} fxg5 {[%emt 0:02:45]} 21. Nb3 {[%emt 0:06:25]} Rc8 {[%emt 0:02:15]} 22. fxg5 {[%emt 0:01:25]} b5 {[%emt 0:07:23]} 23. a3 {[%emt 0:01:30]} Bc6 {[%emt 0:04:45]} 24. Rg4 {[%emt 0:03:44]} Qd8 {[%emt 0:04:17]} 25. Rf1 {[%emt 0:03:56]} Nc7 {[%emt 0:01:09]} 26. Rgf4 {[%emt 0:02:55]} Qe7 {[%emt 0:00:23]} 27. Qe3 {[%emt 0:03:13]} Bd7 {[%emt 0:01:29]} 28. Kb1 {[%emt 0:05:25]} Rxf4 {[%emt 0:00:26]} 29. Rxf4 {[%emt 0:00:10]} e5 {[%emt 0:00:17]} 30. Rf2 {[%emt 0:00:46]} Be6 {[%emt 0:00:24]} 31. Ne2 {[%emt 0:01:49]} Rf8 {[%emt 0:00:31]} 32. Rxf8+ {[%emt 0:01:33]} Qxf8 {[%emt 0:00:05]} 33. Qb6 {[%emt 0:01:20]} Qe7 {[%emt 0:01:06]} 34. Na5 {[%emt 0:00:35]} Qd7 {[%emt 0:01:43]} 35. Nc6 {[%emt 0:00:35]} Qf7 {[%emt 0:00:21]} 36. Nc1 {[%emt 0:00:47]} Qd7 {[%emt 0:00:48]} 37. Nb8 {[%emt 0:00:24]} Qc8 {[%emt 0:00:15]} 38. Nc6 {[%emt 0:00:27]} Qd7 {[%emt 0:00:18]} 39. Nb4 {[%emt 0:00:30]} d5 {[%emt 0:01:01]} 40. exd5 {[%emt 0:00:41]} Nxd5 {[%emt 0:00:33]} 41. Qb8+ {[%emt 0:01:31]} Kf7 {[%emt 0:00:47]} 42. Qxe5 {[%emt 0:00:34]} Nxb4 {[%emt 0:02:18]} 43. Qf4+ {[%emt 0:01:20]} Kg8 {[%emt 0:01:00]} 44. Qxb4 {[%emt 0:00:16]} Qc6 {[%emt 0:02:32]} 45. Qf4 {[%emt 0:08:41]} Qb6 {[%emt 0:11:18]} 46. h5 {[%emt 0:03:32]} Bf7 {[%emt 0:04:13]} 47. h6 {[%emt 0:02:36]} Qg6 {[%emt 0:02:50]} 48. Qb8+ {[%emt 0:02:49]} Be8 {[%emt 0:00:11]} 49. Nd3 {[%emt 0:01:39]} Kf8 {[%emt 0:02:09]} 50. Qf4+ {[%emt 0:01:40]} Qf7 {[%emt 0:04:18]} 51. Qd6+ {[%emt 0:02:00]} Kg8 {[%emt 0:00:31]} 52. Qxa6 {[%emt 0:01:18]} gxh6 {[%emt 0:01:21]} 53. gxh6 {[%emt 0:01:05]} Qg6 {[%emt 0:02:50]} 54. Qc8 {[%emt 0:03:23]} Kf8 {[%emt 0:00:33]} 55. Qc5+ {[%emt 0:01:34]} Kg8 {[%emt 0:00:08]} 56. Qe7 {[%emt 0:00:47]} Bf7 {[%emt 0:00:44]} 57. Qd8+ {[%emt 0:00:18]} Be8 {[%emt 0:00:07]} 58. Ne5 {[%emt 0:01:13]} Qh5 {[%emt 0:00:54]} 59. Qe7 {[%emt 0:01:04]} Bf7 {[%emt 0:00:56]} 60. Nxf7 {[%emt 0:00:34]} Qxf7 {[%emt 0:00:05]} 61. Qxf7+ {[%emt 0:00:24]} Kxf7 {[%emt 0:00:05]} 62. b3 {[%emt 0:00:23]} Kg6 {[%emt 0:00:21]} 63. a4 {[%emt 0:00:09]} bxa4 {[%emt 0:00:05]} 64. bxa4 {[%emt 0:00:05]} Kxh6 {[%emt 0:00:12]} 65. a5 {[%emt 0:00:13] normal} 1-0

[Event "DVM U20w 2019"]
[Site "Braunschweig"]
[Date "2019.12.27"]
[Round "2"]
[White "Möller, Hannah"]
[Black "Sherif, Amina"]
[Result "1-0"]
[ECO "A04"]
[WhiteElo "1832"]
[BlackElo "1945"]
[Annotator "NA"]
[PlyCount "79"]
[EventDate "2019.12.27"]
[EventType "team-tourn"]
[EventRounds "7"]
[EventCountry "GER"]
[SourceTitle "playchess.com"]
[Source "ChessBase"]
[SourceQuality "1"]
[WhiteTeam "SV Lingen"]
[BlackTeam "TuRa Harksheide Norderstedt"]
[TimeControl "40/5400+30:1800+30"]

1. Nf3 {[%emt 0:00:00]} d6 {[%emt 0:00:00]} 2. d4 {[%emt 0:00:00]} Nf6 {[%emt 0:01:14]} 3. g3 {[%emt 0:00:00]} Nbd7 {[%emt 0:00:23]} 4. Bg2 {[%emt 0:00:01]} e5 {[%emt 0:00:19]} 5. dxe5 {[%emt 0:00:15]} dxe5 {[%emt 0:00:13]} 6. O-O {[%emt 0:00:17]} Be7 {[%emt 0:03:52]} 7. c4 {[%emt 0:03:00]} O-O {[%emt 0:01:02]} 8. Nc3 {[%emt 0:00:15]} c6 {[%emt 0:01:58]} 9. a3 {[%emt 0:00:42]} Qc7 {[%emt 0:10:31]} 10. Qc2 {[%emt 0:01:46]} Re8 {[%emt 0:20:49]} 11. b4 {[%emt 0:01:13]} Nb6 {[%emt 0:03:04]} 12. c5 {[%emt 0:02:29]} Nbd5 {[%emt 0:00:11]} 13. Bb2 {[%emt 0:01:52]} Bf8 {[%emt 0:02:23]} 14. e4 {[%emt 0:10:16]} Ne7 {[%emt 0:10:58]} 15. Nd1 {[%emt 0:01:55]} Ng6 {[%emt 0:00:56]} 16. Ne3 {[%emt 0:07:08]} b6 {[%emt 0:03:34]} 17. cxb6 {[%emt 0:02:34]} axb6 {[%emt 0:08:11]} 18. Rfd1 {[%emt 0:10:59]} c5 {[%emt 0:06:25]} 19. bxc5 {[%emt 0:06:30]} Bxc5 {[%emt 0:00:09]} 20. Nd2 {[%emt 0:11:49]} Ra7 {[%emt 0:05:26]} 21. Qc3 {[%emt 0:04:41]} Qb7 {[%emt 0:02:15]} 22. Nd5 {[%emt 0:04:08]} Nxd5 {[%emt 0:03:47]} 23. exd5 {[%emt 0:03:14]} Bg4 {[%emt 0:00:17]} 24. Re1 {[%emt 0:01:56]} Qd7 {[%emt 0:01:09]} 25. Nb3 {[%emt 0:02:16]} Bd6 {[%emt 0:00:25]} 26. Qc6 {[%emt 0:03:27]} Qe7 {[%emt 0:02:10]} 27. Qxb6 {[%emt 0:05:11]} Rb7 {[%emt 0:00:10]} 28. Qe3 {[%emt 0:00:22]} Reb8 {[%emt 0:00:01]} 29. Na5 {[%emt 0:01:21]} Rxb2 {[%emt 0:02:02]} 30. Nc6 {[%emt 0:00:08]} Qc7 {[%emt 0:01:24]} 31. Nxb8 {[%emt 0:00:45]} Qxb8 {[%emt 0:00:18]} 32. a4 {[%emt 0:00:50]} Qb4 33. Rec1 {[%emt 0:04:45]} Re2 {[%emt 0:02:55]} 34. Qc3 {[%emt 0:01:55]} Qb6 {[%emt 0:00:40]} 35. Rf1 {[%emt 0:01:32]} e4 {[%emt 0:03:11]} 36. Qc6 {[%emt 0:02:25]} Qxc6 {[%emt 0:03:16]} 37. dxc6 {[%emt 0:00:06]} Bc8 {[%emt 0:00:40]} 38. c7 {[%emt 0:02:35]} Ne5 {[%emt 0:01:05]} 39. Rad1 {[%emt 0:01:35]} Be7 {[%emt 0:01:08]} 40. Rd8+ {[%emt 0:00:15] normal} 1-0

[Event "DVM U20w 2019"]
[Site "Braunschweig"]
[Date "2019.12.27"]
[Round "2"]
[White "Berelowitsch, Dana"]
[Black "de Veer, Mara"]
[Result "1-0"]
[ECO "B18"]
[WhiteElo "1792"]
[BlackElo "1447"]
[Annotator "NA"]
[PlyCount "70"]
[EventDate "2019.12.27"]
[EventType "team-tourn"]
[EventRounds "7"]
[EventCountry "GER"]
[SourceTitle "playchess.com"]
[Source "ChessBase"]
[SourceQuality "1"]
[WhiteTeam "SG Solingen"]
[BlackTeam "SC Borussia Lichtenberg"]
[TimeControl "40/5400+30:1800+30"]

1. e4 {[%emt 0:00:00]} c6 {[%emt 0:00:00]} 2. d4 {[%emt 0:00:00]} d5 {[%emt 0:00:00]} 3. Nc3 {[%emt 0:00:00]} dxe4 {[%emt 0:00:00]} 4. Nxe4 {[%emt 0:00:00]} Bf5 {[%emt 0:00:01]} 5. Ng3 {[%emt 0:00:00]} Bg6 {[%emt 0:00:09]} 6. h4 {[%emt 0:00:00]} h6 {[%emt 0:00:11]} 7. Nf3 {[%emt 0:00:01]} e6 {[%emt 0:01:01]} 8. Ne5 {[%emt 0:04:03]} Ne7 {[%emt 0:06:05]} 9. Nxg6 {[%emt 0:04:27]} Nxg6 {[%emt 0:01:34]} 10. h5 {[%emt 0:00:17]} Ne7 {[%emt 0:00:23]} 11. Qd3 {[%emt 0:02:32]} Qc7 {[%emt 0:03:59]} 12. Bd2 {[%emt 0:01:33]} Nd7 {[%emt 0:00:52]} 13. O-O-O {[%emt 0:01:01]} O-O-O {[%emt 0:00:58]} 14. Qa3 {[%emt 0:07:03]} Qb8 {[%emt 0:15:11]} 15. Qf3 {[%emt 0:07:39]} Nf6 {[%emt 0:05:27]} 16. Bf4 {[%emt 0:01:13]} Qa8 {[%emt 0:01:01]} 17. Be5 {[%emt 0:05:08]} Ned5 {[%emt 0:12:34]} 18. c4 {[%emt 0:01:44]} Nb6 {[%emt 0:05:47]} 19. Bxf6 {[%emt 0:03:07]} gxf6 {[%emt 0:00:30]} 20. Qxf6 {[%emt 0:00:20]} Rh7 {[%emt 0:04:10]} 21. Bd3 {[%emt 0:00:50]} Rg7 {[%emt 0:00:37]} 22. Ne4 {[%emt 0:08:30]} Qb8 {[%emt 0:15:27]} 23. Qxh6 {[%emt 0:08:33]} Qc7 {[%emt 0:07:37]} 24. Qf6 {[%emt 0:03:43]} Rg8 {[%emt 0:06:10]} 25. h6 {[%emt 0:04:33]} Be7 {[%emt 0:05:27]} 26. Qxf7 {[%emt 0:02:30]} e5 {[%emt 0:04:53]} 27. Qe6+ {[%emt 0:02:22]} Kb8 {[%emt 0:01:38]} 28. h7 {[%emt 0:01:18]} Rh8 {[%emt 0:00:45]} 29. Qxe5 {[%emt 0:01:27]} Qxe5 {[%emt 0:00:57]} 30. dxe5 {[%emt 0:00:01]} Rdf8 {[%emt 0:00:38]} 31. g4 {[%emt 0:04:18]} Rf7 {[%emt 0:00:45]} 32. Nf6 {[%emt 0:00:34]} Bxf6 {[%emt 0:00:28]} 33. exf6 {[%emt 0:00:02]} Rxf6 {[%emt 0:00:04]} 34. g5 {[%emt 0:00:35] normal} Rf7 {[%emt 0:00:45] normal} 35. g6 {[%emt 0:00:44]} Rg7 {[%emt 0:00:19] normal} 1-0

[Event "DVM U20w 2019"]
[Site "Braunschweig"]
[Date "2019.12.27"]
[Round "2"]
[White "Ziegenfuß, Larissa"]
[Black "Bardorz, Jana"]
[Result "1/2-1/2"]
[ECO "C78"]
[WhiteElo "1755"]
[BlackElo "2054"]
[Annotator "NA"]
[PlyCount "57"]
[EventDate "2019.12.27"]
[EventType "team-tourn"]
[EventRounds "7"]
[EventCountry "GER"]
[SourceTitle "playchess.com"]
[Source "ChessBase"]
[SourceQuality "1"]
[WhiteTeam "SG Blau-Weiß Stadtilm"]
[BlackTeam "SC Bavaria Regensburg"]
[TimeControl "40/5400+30:1800+30"]

1. e4 {[%emt 0:00:00]} e5 {[%emt 0:00:00]} 2. Nf3 Nc6 3. Bb5 {[%emt 0:00:20]} a6 {[%emt 0:00:17]} 4. Ba4 {[%emt 0:00:05]} Nf6 {[%emt 0:00:19]} 5. O-O {[%emt 0:00:10]} b5 {[%emt 0:00:38]} 6. Bb3 {[%emt 0:00:06]} Bc5 {[%emt 0:00:40]} 7. c3 {[%emt 0:00:36]} d6 {[%emt 0:00:40]} 8. d4 {[%emt 0:01:09]} Bb6 {[%emt 0:00:41]} 9. h3 {[%emt 0:02:17]} Bb7 {[%emt 0:07:48]} 10. Re1 {[%emt 0:01:25]} h6 {[%emt 0:04:31]} 11. a4 {[%emt 0:01:36]} O-O {[%emt 0:03:27]} 12. axb5 {[%emt 0:07:00]} axb5 {[%emt 0:00:37]} 13. Rxa8 {[%emt 0:00:41]} Bxa8 {[%emt 0:02:14]} 14. Na3 {[%emt 0:06:14]} exd4 {[%emt 0:06:22]} 15. cxd4 {[%emt 0:01:43]} Na5 {[%emt 0:03:52]} 16. d5 {[%emt 0:04:05]} Nxb3 {[%emt 0:04:08]} 17. Qxb3 {[%emt 0:00:11]} Re8 {[%emt 0:02:08]} 18. Qd3 {[%emt 0:04:00]} c6 {[%emt 0:07:53]} 19. dxc6 {[%emt 0:05:02]} Bxc6 {[%emt 0:00:44]} 20. e5 {[%emt 0:04:01]} Bxf3 {[%emt 0:10:26]} 21. Qxf3 {[%emt 0:02:10]} Rxe5 {[%emt 0:08:59]} 22. Rxe5 {[%emt 0:02:07]} dxe5 {[%emt 0:00:11]} 23. Nxb5 {[%emt 0:02:49]} Nd5 {[%emt 0:12:24]} 24. Nc3 {[%emt 0:09:16]} Nb4 {[%emt 0:06:07]} 25. Qg3 {[%emt 0:04:26]} Nd3 {[%emt 0:04:36] normal} 26. Be3 {[%emt 0:04:13] normal} Bxe3 {[%emt 0:02:43] normal} 27. Qxe3 {[%emt 0:01:29] normal} Nxb2 {[%emt 0:01:17]} 28. Qxe5 {[%emt 0:01:53] normal} Nc4 {[%emt 0:01:20] normal} 29. Qe4 {[%emt 0:02:00] normal} 1/2-1/2

[Event "DVM U20w 2019"]
[Site "Braunschweig"]
[Date "2019.12.27"]
[Round "2"]
[White "Kiesel, Lara"]
[Black "Jacoby, Angelina"]
[Result "1/2-1/2"]
[ECO "B01"]
[WhiteElo "1732"]
[BlackElo "1635"]
[Annotator "NA"]
[PlyCount "80"]
[EventDate "2019.12.27"]
[EventType "team-tourn"]
[EventRounds "7"]
[EventCountry "GER"]
[SourceTitle "playchess.com"]
[Source "ChessBase"]
[SourceQuality "1"]
[WhiteTeam "SK Lehrte 1919"]
[BlackTeam "Leegebrucher SF"]
[TimeControl "40/5400+30:1800+30"]

1. e4 d5 2. exd5 Qxd5 3. Nc3 Qa5 4. d4 c6 5. Bd2 Qc7 6. Bc4 {[%emt 0:00:37]} Nf6 {[%emt 0:01:34]} 7. Qe2 {[%emt 0:05:29]} Bf5 {[%emt 0:01:44]} 8. O-O-O {[%emt 0:01:37]} e6 {[%emt 0:03:13]} 9. h3 {[%emt 0:02:57]} h5 {[%emt 0:10:02]} 10. Nf3 {[%emt 0:05:11]} Nbd7 {[%emt 0:00:57]} 11. Ne5 {[%emt 0:08:23]} Nxe5 {[%emt 0:07:50]} 12. dxe5 {[%emt 0:00:28]} Nd7 {[%emt 0:02:42]} 13. g4 {[%emt 0:03:28]} Bg6 {[%emt 0:02:48]} 14. f4 {[%emt 0:00:53]} O-O-O {[%emt 0:03:18]} 15. Rhf1 {[%emt 0:08:14]} hxg4 {[%emt 0:03:42]} 16. hxg4 {[%emt 0:00:33]} Bb4 {[%emt 0:05:21]} 17. Rde1 {[%emt 0:13:07]} Nb6 {[%emt 0:17:16]} 18. Bb3 {[%emt 0:01:03]} Qe7 {[%emt 0:15:11]} 19. f5 {[%emt 0:12:23]} exf5 {[%emt 0:04:01]} 20. gxf5 {[%emt 0:00:10]} Bh5 {[%emt 0:00:16]} 21. Qg2 {[%emt 0:01:07]} Qf8 {[%emt 0:04:08]} 22. e6 {[%emt 0:05:10]} Be7 {[%emt 0:02:46]} 23. Ne4 {[%emt 0:07:32]} Nd5 {[%emt 0:02:33]} 24. Rg1 {[%emt 0:05:36]} g6 {[%emt 0:03:23]} 25. f6 {[%emt 0:05:18]} Nxf6 {[%emt 0:01:11]} 26. Bc3 {[%emt 0:00:28]} fxe6 {[%emt 0:01:55]} 27. Bxe6+ {[%emt 0:02:11]} Kb8 {[%emt 0:00:31]} 28. Rgf1 {[%emt 0:00:42]} Qh6+ {[%emt 0:00:58]} 29. Qg5 {[%emt 0:08:24]} Nxe4 {[%emt 0:02:35]} 30. Qxh6 {[%emt 0:01:09]} Rxh6 {[%emt 0:00:15]} 31. Rxe4 {[%emt 0:00:13]} Bg5+ {[%emt 0:01:25]} 32. Kb1 {[%emt 0:00:27]} Rh7 {[%emt 0:01:03]} 33. b3 {[%emt 0:00:58]} Re7 {[%emt 0:01:47]} 34. Bb4 {[%emt 0:00:41]} Ree8 {[%emt 0:00:23]} 35. Rfe1 {[%emt 0:00:37]} Rd1+ {[%emt 0:00:33]} 36. Rxd1 {[%emt 0:00:41]} Bxd1 {[%emt 0:00:05]} 37. Re1 {[%emt 0:00:14]} Bh5 {[%emt 0:00:28]} 38. Bd6+ {[%emt 0:00:19]} Ka8 {[%emt 0:00:20]} 39. Bg3 {[%emt 0:00:20]} Rd8 {[%emt 0:01:06]} 40. Bf7 {[%emt 0:00:22]} Rd1+ {[%emt 0:01:25] normal} 1/2-1/2

[Event "DVM U20w 2019"]
[Site "Braunschweig"]
[Date "2019.12.27"]
[Round "2"]
[White "Peglau, Charis"]
[Black "Sokolowski, Judith"]
[Result "0-1"]
[ECO "D37"]
[WhiteElo "1728"]
[BlackElo "1722"]
[Annotator "NA"]
[PlyCount "85"]
[EventDate "2019.12.27"]
[EventType "team-tourn"]
[EventRounds "7"]
[EventCountry "GER"]
[SourceTitle "playchess.com"]
[Source "ChessBase"]
[SourceQuality "1"]
[WhiteTeam "Schachzentrum Seeblick"]
[BlackTeam "Düsseldorfer SK"]
[TimeControl "40/5400+30:1800+30"]

1. d4 d5 {[%emt 0:00:00]} 2. c4 {[%emt 0:00:00]} e6 {[%emt 0:00:00]} 3. Nf3 {[%emt 0:00:00]} Nf6 {[%emt 0:00:00]} 4. Nc3 {[%emt 0:00:00]} Nbd7 {[%emt 0:00:00]} 5. e3 {[%emt 0:00:47]} Bd6 {[%emt 0:03:04]} 6. Bd2 {[%emt 0:00:54]} b6 {[%emt 0:05:10]} 7. Rc1 {[%emt 0:03:38]} c6 {[%emt 0:04:17]} 8. cxd5 {[%emt 0:01:01]} exd5 {[%emt 0:01:48]} 9. Bd3 {[%emt 0:01:58]} O-O {[%emt 0:01:46]} 10. O-O {[%emt 0:00:36]} Re8 {[%emt 0:02:11]} 11. a3 {[%emt 0:02:19]} c5 {[%emt 0:08:18]} 12. Nb5 {[%emt 0:04:29]} Bf8 {[%emt 0:03:07]} 13. Re1 {[%emt 0:02:47]} c4 {[%emt 0:07:12]} 14. Be2 {[%emt 0:01:34]} a6 {[%emt 0:01:51]} 15. Nc3 {[%emt 0:01:05]} b5 {[%emt 0:01:43]} 16. h3 {[%emt 0:01:09]} Bd6 {[%emt 0:04:09]} 17. Qc2 {[%emt 0:01:12]} Nb6 {[%emt 0:04:12]} 18. Na2 {[%emt 0:03:46]} a5 {[%emt 0:06:33]} 19. Nc3 {[%emt 0:06:41]} Bd7 {[%emt 0:01:39]} 20. Bf1 {[%emt 0:02:02]} b4 {[%emt 0:02:45]} 21. axb4 {[%emt 0:01:46]} axb4 {[%emt 0:00:16]} 22. Ne2 {[%emt 0:00:39]} Ra2 {[%emt 0:09:30]} 23. Ra1 {[%emt 0:01:25]} Qa8 {[%emt 0:01:44]} 24. Qb1 {[%emt 0:01:34]} Rxa1 {[%emt 0:01:20]} 25. Qxa1 {[%emt 0:02:02]} Qb7 {[%emt 0:02:25]} 26. Qb1 {[%emt 0:03:09]} Ne4 {[%emt 0:02:39]} 27. Rc1 {[%emt 0:04:31]} Ra8 {[%emt 0:01:35]} 28. Be1 {[%emt 0:03:06]} Qc8 {[%emt 0:07:49]} 29. Rd1 {[%emt 0:01:23]} Ba4 {[%emt 0:02:42]} 30. Rc1 {[%emt 0:01:07]} Bb3 {[%emt 0:01:40]} 31. Nd2 {[%emt 0:01:31]} Nxd2 {[%emt 0:05:06]} 32. Bxd2 {[%emt 0:00:09]} Qa6 {[%emt 0:01:23]} 33. Qf5 {[%emt 0:01:01]} Qa2 {[%emt 0:02:38]} 34. Qb1 {[%emt 0:01:13]} Na4 {[%emt 0:01:35]} 35. Qf5 {[%emt 0:02:54]} Nb6 {[%emt 0:01:12]} 36. Qb1 {[%emt 0:00:14]} Na4 {[%emt 0:00:44]} 37. Qf5 {[%emt 0:00:15]} Nxb2 {[%emt 0:00:49]} 38. Qxd5 {[%emt 0:00:25]} c3 {[%emt 0:01:31]} 39. Qxd6 {[%emt 0:02:06]} cxd2 {[%emt 0:00:39]} 40. Qxb4 {[%emt 0:01:04]} d1=Q {[%emt 0:01:36]} 41. Rxd1 {[%emt 0:30:13]} Nxd1 {[%emt 0:31:13]} 42. g3 {[%emt 0:03:41]} g6 {[%emt 0:00:00]} 43. e4 {[%emt 0:00:00] normal} 0-1

[Event "DVM U20w 2019"]
[Site "Braunschweig"]
[Date "2019.12.27"]
[Round "2"]
[White "Rudolph, Eva"]
[Black "Peglau, Sarah"]
[Result "1-0"]
[ECO "C10"]
[WhiteElo "1711"]
[BlackElo "1760"]
[Annotator "NA"]
[PlyCount "50"]
[EventDate "2019.12.27"]
[EventType "team-tourn"]
[EventRounds "7"]
[EventCountry "GER"]
[SourceTitle "playchess.com"]
[Source "ChessBase"]
[SourceQuality "1"]
[WhiteTeam "Düsseldorfer SK"]
[BlackTeam "Schachzentrum Seeblick"]
[TimeControl "40/5400+30:1800+30"]

1. e4 {[%emt 0:00:00]} e6 {[%emt 0:00:00]} 2. d4 {[%emt 0:00:00]} d5 {[%emt 0:00:00]} 3. Nd2 {[%emt 0:00:00]} dxe4 {[%emt 0:00:00]} 4. Nxe4 {[%emt 0:00:00]} Bd7 {[%emt 0:00:00]} 5. Nf3 {[%emt 0:01:15]} Bc6 {[%emt 0:00:00]} 6. Bd3 {[%emt 0:00:44]} Nd7 {[%emt 0:00:16]} 7. O-O {[%emt 0:01:34]} Ngf6 {[%emt 0:00:24]} 8. Nxf6+ {[%emt 0:02:49]} Qxf6 {[%emt 0:01:47]} 9. Be2 {[%emt 0:07:43]} Bd6 {[%emt 0:02:09]} 10. c4 {[%emt 0:03:34]} Bxf3 {[%emt 0:01:59]} 11. Bxf3 {[%emt 0:01:12]} c6 {[%emt 0:00:17]} 12. Be3 {[%emt 0:02:43]} O-O {[%emt 0:01:12]} 13. Qd2 {[%emt 0:02:22]} Rad8 {[%emt 0:04:42]} 14. Bg5 {[%emt 0:08:34]} Qg6 {[%emt 0:03:24]} 15. Bxd8 {[%emt 0:03:01]} Rxd8 {[%emt 0:00:01]} 16. d5 {[%emt 0:08:51]} Ne5 {[%emt 0:01:31]} 17. Be2 {[%emt 0:02:46]} exd5 {[%emt 0:02:46]} 18. cxd5 {[%emt 0:03:13]} c5 {[%emt 0:00:45]} 19. f4 {[%emt 0:05:38]} Nd7 {[%emt 0:01:27]} 20. Rae1 {[%emt 0:03:40]} Nf6 {[%emt 0:01:17]} 21. Bd3 {[%emt 0:08:35]} Qh5 {[%emt 0:01:58]} 22. Be2 {[%emt 0:04:20]} Qf5 {[%emt 0:08:08]} 23. g3 {[%emt 0:02:40]} b6 {[%emt 0:06:03]} 24. Bd1 {[%emt 0:05:18]} Nxd5 {[%emt 0:11:04]} 25. Bb3 {[%emt 0:05:13] normal} Nb4 {[%emt 0:06:26] normal} 1-0

[Event "DVM U20w 2019"]
[Site "Braunschweig"]
[Date "2019.12.27"]
[Round "2"]
[White "Schiewe, Nadin"]
[Black "Thiele, Lea-Marie"]
[Result "1-0"]
[ECO "A48"]
[WhiteElo "1629"]
[BlackElo "1061"]
[Annotator "NA"]
[PlyCount "81"]
[EventDate "2019.12.27"]
[EventType "team-tourn"]
[EventRounds "7"]
[EventCountry "GER"]
[SourceTitle "playchess.com"]
[Source "ChessBase"]
[SourceQuality "1"]
[WhiteTeam "Leegebrucher SF"]
[BlackTeam "SK Lehrte 1919"]
[TimeControl "40/5400+30:1800+30"]

1. d4 {[%emt 0:00:00]} Nf6 {[%emt 0:00:00]} 2. Nf3 {[%emt 0:00:00]} g6 {[%emt 0:00:10]} 3. Nbd2 {[%emt 0:00:19]} Bg7 {[%emt 0:00:18]} 4. e4 {[%emt 0:00:25]} d6 {[%emt 0:00:43]} 5. Bd3 {[%emt 0:02:14]} Nbd7 {[%emt 0:01:08]} 6. O-O {[%emt 0:02:07]} e5 {[%emt 0:00:34]} 7. c3 {[%emt 0:03:39]} O-O {[%emt 0:01:01]} 8. Nc4 {[%emt 0:01:31]} Nh5 {[%emt 0:01:21]} 9. Be3 {[%emt 0:02:22]} b6 {[%emt 0:01:47]} 10. Qd2 {[%emt 0:02:46]} Nf4 {[%emt 0:02:38]} 11. Bxf4 {[%emt 0:01:21]} exf4 {[%emt 0:00:14]} 12. Qxf4 {[%emt 0:00:33]} Nf6 {[%emt 0:01:31]} 13. e5 {[%emt 0:03:14]} dxe5 {[%emt 0:02:02]} 14. Ncxe5 {[%emt 0:02:37]} Nh5 {[%emt 0:00:41]} 15. Qd2 {[%emt 0:03:04]} Be6 {[%emt 0:04:55]} 16. Be4 {[%emt 0:02:24]} Rb8 {[%emt 0:00:25]} 17. Nc6 {[%emt 0:00:21]} Qf6 {[%emt 0:00:43]} 18. Nxb8 {[%emt 0:00:41]} Rxb8 {[%emt 0:00:05]} 19. Ne5 {[%emt 0:01:52]} Qh4 {[%emt 0:01:01]} 20. Rfe1 {[%emt 0:01:40]} Rd8 {[%emt 0:02:28]} 21. Nc6 {[%emt 0:01:38]} Rd6 {[%emt 0:01:25]} 22. Bf3 {[%emt 0:03:32]} Nf4 {[%emt 0:02:56]} 23. Qe3 {[%emt 0:05:15]} Bh6 {[%emt 0:00:42]} 24. Qe4 {[%emt 0:01:58]} Rd5 25. Ne5 {[%emt 0:04:16]} Rb5 {[%emt 0:04:05]} 26. Nd3 {[%emt 0:03:16]} Rg5 {[%emt 0:00:39]} 27. Nxf4 {[%emt 0:00:45]} Bh3 {[%emt 0:02:09]} 28. Nxh3 {[%emt 0:01:02]} Qxh3 {[%emt 0:00:10]} 29. Qe8+ {[%emt 0:00:48]} Bf8 {[%emt 0:00:12]} 30. Bd5 {[%emt 0:00:50]} Qf5 {[%emt 0:01:39]} 31. Re5 {[%emt 0:01:07]} Qf6 {[%emt 0:01:17]} 32. Rxg5 {[%emt 0:00:14]} Qg7 {[%emt 0:00:23]} 33. Re5 {[%emt 0:00:57]} Qf6 {[%emt 0:01:42]} 34. Rae1 {[%emt 0:01:08]} Qf4 {[%emt 0:00:40]} 35. Re7 {[%emt 0:00:31]} Qf6 {[%emt 0:00:25]} 36. Rxf7 {[%emt 0:00:21]} Qd6 {[%emt 0:01:11]} 37. Rd7+ {[%emt 0:00:47]} Qxd5 {[%emt 0:00:24]} 38. Rxd5 {[%emt 0:00:12]} a5 {[%emt 0:00:10]} 39. Rd7 {[%emt 0:00:15]} c6 {[%emt 0:00:11]} 40. Qf7+ {[%emt 0:00:04]} Kh8 {[%emt 0:00:21]} 41. Qxh7# {normal} 1-0